Cogmind - Beta 13 @@@ ROGUE MODE // 2024.04.06 @ 13:02:10 Player: Derauth Result: Destroyed by Y-45 Defender with Heavy Assault Rifle Performance ------------- Evolutions (1) 500 Regions Visited (2) 400 Robots Destroyed (20) 100 Value Destroyed (546) 546 Prototype IDs (2) 40 Alien Tech Used (0) 0 Bonus (19) 19 TOTAL SCORE: 1605 Bonus ------- High Alert Combat Kills 19 Cogmind --------- Core Integrity 0/400 Matter 28/450 Energy 100/100 System Corruption 0% Temperature Cool (9) Movement Core (250) Ox4 Location -9/Materials Parts ------- > --- POWER (1) -------- (None) > --- PROPULSION (2) --- (None) > --- UTILITY (4) ------ Medium Storage Unit Large Matter Pod > --- WEAPON (2) ------- (None) > --- INVENTORY (10) --- Small Matter Pod (0) Large Matter Pod (0) Large Matter Pod (0) Targeting Computer Targeting Computer Light Assault Rifle Light Assault Rifle Peak State ------------ > --- POWER ------------ Light Ion Engine > --- PROPULSION ------- Aluminum Leg Aluminum Leg > --- UTILITY ---------- Small Storage Unit Large Matter Pod Targeting Computer Targeting Computer > --- WEAPON ----------- Light Assault Rifle Light Assault Rifle > --- INVENTORY -------- Small Matter Pod Large Matter Pod Large Matter Pod Targeting Computer Targeting Computer Light Cannon [Rating: 9] Favorites ----------- Power Light Ion Engine Engine Light Ion Engine Propulsion Aluminum Leg Leg Aluminum Leg Utility Targeting Computer Storage Large Matter Pod Processor Targeting Computer Weapon Light Assault Rifle Ballistic Gun Light Assault Rifle Ballistic Cannon Light Cannon Launcher Grenade Launcher Build | -11 -10 -9 ------- Run | Yrd Mat Mat Slots Evolved 2 | . . 2 Power . | . . . Propulsion . | . . . Utility 2 | . . 2 Weapon . | . . . Parts Attached 25 | 6 9 10 Power 2 | 1 1 . Engine 2 | 1 1 . Core . | . . . Reactor . | . . . Propulsion 2 | 2 . . Treads . | . . . Leg 2 | 2 . . Wheel . | . . . Hover . | . . . Flight . | . . . Utility 8 | 1 4 3 Device . | . . . Storage 6 | 1 3 2 Processor 2 | . 1 1 Hackware . | . . . Protection . | . . . Artifact . | . . . Weapon 13 | 2 4 7 Energy Gun . | . . . Energy Cannon . | . . . Ballistic Gun 7 | 2 3 2 Ballistic Cannon 1 | . 1 . Launcher 5 | . . 5 Special Weapon . | . . . Impact Weapon . | . . . Slashing Weapon . | . . . Piercing Weapon . | . . . Special Melee Weapon . | . . . Unidentified Prototypes . | . . . Parts Lost 9 | . 1 8 Power 2 | . 1 1 Propulsion 2 | . . 2 Utility 2 | . . 2 Weapon 3 | . . 3 Highest Loss Streak 5 | . 1 5 To Critical Strikes . | . . . Average Slot Usage (%) 92 | . 98 87 Engine 11 | . 13 8 Leg 23 | . 28 18 Storage 18 | . 14 22 Processor 15 | . 12 19 Ballistic Gun 11 | . 15 7 Ballistic Cannon 6 | . 12 . Launcher 5 | . . 10 Naked Turns . | . . . Heaviest Build 22 | 11 13 22 Greatest Support 20 | 20 20 20 Greatest Overweight (x) 5 | . . 5 Average Overweight (x) . | . . . Largest Inventory Capacity 10 | 8 8 10 Average Capacity 7 | 7 5 9 Most Carried 9 | . 8 9 Average Carried 5 | . 3 7 Final Capacity 10 | 8 8 10 Final Carried 8 | . 8 7 Class Distribution -------------------- 100% | Mutant Dominant Class ---------------- Mutant | -10/Materials Mutant | -9/Materials Resources | -11 -10 -9 ----------- Run | Yrd Mat Mat Matter Collected 589 | 207 381 1 Remotely . | . . . Salvage Created 448 | . 306 142 Parts 47 | . 28 19 Haulers Intercepted 2 | . 1 1 Recyclers Shooed 1 | . . 1 Parts Field Recycled . | . . . Retrieved Matter . | . . . Parts Self-Destructed . | . . . Prevented . | . . . Kills | -11 -10 -9 ------- Run | Yrd Mat Mat Combat Hostiles Destroyed 10 | . 5 5 Guns 2 | . 2 . Cannons 3 | . 3 . AOE 5 | . . 5 Classes Destroyed 8 | . 6 2 Worker 1 | . . 1 Builder 1 | . 1 . Hauler 2 | . 1 1 Recycler 1 | . 1 . Watcher 5 | . 3 2 Swarmer 3 | . 3 . Grunt 5 | . 2 3 Sentry 2 | . . 2 Best Kill Streak 3 | . 3 3 Combat Bots Only 3 | . 3 2 Max Kills in Single Turn 2 | . 1 2 Gunslinging . | . . . Exploded 1 | . . 1 Melee . | . . . Uniques/NPCs Destroyed . | . . . Combat | -11 -10 -9 -------- Run | Yrd Mat Mat Hostile Shots Fired 106 | . 14 92 Missed 35 | . 6 29 Damage Taken 1282 | . 307 975 Core 557 | . 147 410 Absorbed by Shields . | . . . Regen/Repaired (Parts) 31 | . . 31 Core Remaining (%) 70 | 100 41 . Volleys Fired 43 | . 26 17 Largest 2 | . 2 2 Hottest 60 | . 55 60 Shots Fired 85 | . 52 33 Gun 30 | . 26 4 Cannon 26 | . 26 . Launcher 29 | . . 29 Special . | . . . Kinetic 56 | . 52 4 Thermal . | . . . Explosive 29 | . . 29 Electromagnetic . | . . . Robot Hit Streak 12 | . 12 10 Robot Miss Streak 5 | . 5 3 Penetration Max . | . . . Secondary Targets . | . . . Shots Hit Robots 36 | . 25 11 Core Hits 35 | . 15 20 Critical Kills . | . . . Critical Parts Destroyed . | . . . Critical Strikes . | . . . Melee Attacks . | . . . Impact . | . . . Slashing . | . . . Piercing . | . . . Sneak Attacks . | . . . Combat Hostiles . | . . . Follow-up Attacks . | . . . Damage Inflicted 1198 | . 438 760 Guns 188 | . 179 9 Cannons 192 | . 192 . Explosions 814 | . 63 751 Melee . | . . . Ramming 4 | . 4 . Kinetic 380 | . 371 9 Thermal 158 | . 63 95 Explosive 656 | . . 656 Electromagnetic . | . . . Impact . | . . . Slashing . | . . . Piercing . | . . . Highest Corruption . | . . . Average Corruption . | . . . Corruption Purged . | . . . Corruption Blocked . | . . . Overload Shots . | . . . Overflow Damage 43 | . . 43 Projectiles . | . . . Explosions 43 | . . 43 Melee . | . . . Knockbacks . | . . . Impact . | . . . Kinetic . | . . . Secondary . | . . . Self-Inflicted Damage 254 | . 171 83 Shots 9 | . 2 7 Rammed . | . . . Targets Rammed 2 | . 1 1 Kicked 2 | . 1 1 Crushed . | . . . Highest Temperature 28 | . 28 6 Average Temperature 10 | . 12 4 Received Heat Transfer 399 | . . 399 Siege Activations . | . . . Robots Corrupted . | . . . Combat Hostiles . | . . . Parts Fried . | . . . Impact Corruptions . | . . . Robots Melted . | . . . Combat Hostiles . | . . . Parts Melted . | . . . Heat Transferred 100 | . 50 50 Parts Sabotaged . | . . . Parts Stolen . | . . . Parts Stripped . | . . . Power Chain Reactions . | . . . Alert | -11 -10 -9 ------- Run | Yrd Mat Mat Peak Influence 508 | . 213 508 Initial 34 | . . 34 Average 147 | . 87 228 Maximum Alert Level 2 | . 1 2 Low Security (%) 58 | 100 78 32 Level 1 34 | . 21 52 Level 2 7 | . . 14 Level 3 . | . . . Level 4 . | . . . Level 5 . | . . . High Security . | . . . Max Security . | . . . Squads Dispatched 2 | . . 2 Investigation . | . . . Extermination . | . . . Reinforcement 2 | . . 2 Assault . | . . . Garrison . | . . . Intercept . | . . . Searches Triggered . | . . . Construction Impeded 1 | . . 1 Haulers Reinforced . | . . . Active Scanning Responses . | . . . Cargo Convoy Interrupts . | . . . Stealth | -11 -10 -9 --------- Run | Yrd Mat Mat Distress Signals 1 | . . 1 Communications Jammed . | . . . Distress Signals . | . . . Times Spotted 21 | . 8 13 Peak Tracking Total 6 | . 3 6 Tactical Retreats . | . . . Traps | -11 -10 -9 ------- Run | Yrd Mat Mat Traps Triggered 1 | . 1 . Indirectly . | . . . Trap Hack Attempts . | . . . Triggered . | . . . Disarmed . | . . . Reprogrammed . | . . . Reused . | . . . Traps Extracted . | . . . Installed . | . . . Triggered . | . . . Machines | -11 -10 -9 ---------- Run | Yrd Mat Mat Machines Disabled 16 | . 6 10 Max in Single Turn 4 | . 4 4 Machines Repaired . | . . . Machines Dismantled . | . . . Machines Sabotaged . | . . . Overloaded Fab Kills . | . . . Hacking | -11 -10 -9 --------- Run | Yrd Mat Mat Machines Accessed 5 | . 3 2 Terminals 4 | . 3 1 Fabricators . | . . . Repair Stations 1 | . . 1 Recycling Units . | . . . Scanalyzers . | . . . Garrison Access . | . . . Total Hacks 12 | . 8 4 Successful 9 | . 5 4 Failed 3 | . 3 . Catastrophic . | . . . Database Lockouts . | . . . Manual 5 | . 3 2 Terminals 10 | . 8 2 Fabricators . | . . . Repair Stations 2 | . . 2 Recycling Units . | . . . Scanalyzers . | . . . Garrison Access . | . . . Terminal Hacks 4 | . 3 1 Prototype ID Bank 1 | . 1 . Alert Level 1 | . 1 . Dispatch Records 1 | . . 1 Hauler Manifests 1 | . 1 . Fabricator Hacks . | . . . Repair Station Hacks 2 | . . 2 Scan Component 1 | . . 1 Repair 1 | . . 1 Recycling Unit Hacks . | . . . Scanalyzer . | . . . Garrison Access Hacks . | . . . Unauthorized Hacks 3 | . 2 1 Terminals 3 | . 2 1 Botnet 3 | . 2 1 Fabricators . | . . . Repair Stations . | . . . Recycling Units . | . . . Scanalyzers . | . . . Garrison Access . | . . . Data Cores Recovered . | . . . Used . | . . . Hacking Detections 3 | . 2 1 Full Trace Events 1 | . . 1 Feedback Events . | . . . Feedback Blocked . | . . . Robot Schematics Acquired . | . . . Robots Built . | . . . Authchips . | . . . Time . | . . . Total Robot Build Rating . | . . . Part Schematics Acquired . | . . . Parts Built . | . . . Authchips . | . . . Time . | . . . Total Part Build Rating . | . . . Parts Repaired 1 | . . 1 Time 13 | . . 13 Parts Recycled . | . . . Recycled Matter . | . . . Retrieved Matter . | . . . Retrieved Components . | . . . Parts Scanalyzed . | . . . Part Schematics Acquired . | . . . Parts Damaged . | . . . Bothacking | -11 -10 -9 ------------ Run | Yrd Mat Mat Used RIF Installer . | . . . Robots Hacked . | . . . Non-combat . | . . . Combat . | . . . Robot Hacks Applied . | . . . Relay Couplers Released . | . . . Fabnet Peak Effective % . | . . . Robots Rewired . | . . . Allies Hacked . | . . . Hacks Repelled . | . . . Allies | -11 -10 -9 -------- Run | Yrd Mat Mat Total Allies . | . . . Largest Group . | . . . Highest-Rated Group . | . . . Highest-Rated Ally . | . . . Total Orders . | . . . Ally Attacks . | . . . Total Damage . | . . . Kills . | . . . Allies Corrupted . | . . . Allies Melted . | . . . Intel | -11 -10 -9 ------- Run | Yrd Mat Mat Robot Analysis Total . | . . . Derelict Logs Recovered . | . . . Drone Launches . | . . . Drone Recoveries . | . . . Exploration | -11 -10 -9 ------------- Run | Yrd Mat Mat Turns Passed 1041 | 72 480 489 Spaces Moved 620 | 56 318 246 Core 25 | 5 . 20 Treads . | . . . Legs 595 | 51 318 226 Wheels . | . . . Hover . | . . . Flight . | . . . Fastest Speed 50 | 50 120 120 Average Speed 136 | 113 120 162 Slowest Speed 300 | 120 120 300 Overloaded Moves . | . . . Propulsion Burnouts . | . . . Robots Hopped . | . . . Cave-ins Triggered . | . . . Exploration Rate (%) 31 | 4 54 35 Regions Visited 2 Branch Regions . Pre-discovered Areas . | . . . Known Exits Taken . | . . . Unknown Exits Taken 2 | 1 1 . Scrap Searched . | . . . Spaces Dug 7 | . . 7 Terrain Destroyed 142 | . 20 122 Melee . | . . . Projectile . | . . . AOE 142 | . 20 122 Terrain Rammed . | . . . Walls Destroyed . | . . . Machines Disabled . | . . . Actions | -11 -10 -9 --------- Run | Yrd Mat Mat Total 723 | 61 362 300 Wait 21 | . 1 20 Move 618 | 55 317 246 Hop . | . . . Pick Up 11 | . 7 4 Fast Attach 8 | 6 2 . Attach 3 | . . 3 Detach . | . . . Swap 14 | . 7 7 Drop 3 | . 1 2 Fire 43 | . 26 17 Melee . | . . . Ram . | . . . Kick 2 | . 1 1 Crush . | . . . Escape Stasis . | . . . Rewire . | . . . Trap . | . . . Miscellaneous . | . . . Route ------- -11/Scrapyard -10/Materials (discovered 2 exits: *Mat x2) -9/Materials (discovered 1 exit: [*Min]) History --------- Turn | Location | Event 8 | -11/Scrapyard | Discovered new exit (range 15) 73 | -11/Scrapyard | Entered Materials 248 | -10/Materials | Discovered new exit (range 5) 301 | -10/Materials | Build established: Mutant 371 | -10/Materials | Core integrity fell below 50% 516 | -10/Materials | Discovered new exit (range 7) 553 | -10/Materials | Entered another Materials area 553 | -9/Materials | Evolved 2 slots: Utility x2 761 | -9/Materials | Repaired Lrg. Matter Pod 770 | -9/Materials | Discovered new exit (range 12) 986 | -9/Materials | Lost 5 parts (1p1n1u2w) 1017 | -9/Materials | Core integrity fell below 50% 1033 | -9/Materials | Core integrity fell below 20% 1042 | -9/Materials | Destroyed by Y-45 Defender with Heavy Assault Rifle Last Messages --------------- 00922_ K-01 Serf collects debris. 00924_ U-05 Engineer lays Concrete. 00925_ K-01 Serf collects debris. 00926_ U-05 Engineer builds a Wall. 00929_ K-01 Serf collects debris. 00930_ K-01 Serf destroyed. 00932_ The unstable cave ceiling collapses. 00938_ Targeting Computer destroyed. 00940_ The unstable cave ceiling collapses. 00946_ Aluminum Leg destroyed. 00949_ Grenade Launcher destroyed. 00953_ Y-45 Defender suffers critical hit (Burn). 00955_ Lgt. Ion Engine destroyed. 00955_ Grenade Launcher destroyed. 00988_ Aluminum Leg destroyed. 01019_ Critical hit (Burn: +37). 01035_ The unstable cave ceiling collapses. 01035_ Grenade Launcher destroyed. 01037_ Targeting Computer destroyed. Map ----- +----------------------------------------------------+ | ?????????????????????????????????????????????????? | | ?????????????????????????????????????????????????? | | ?????????????????????????????????????????????????? | | ?????????????????????????????????????????????????? | | ?????????????????????????????????????????????????? | | ?????????????????????????????????????????????????? | | ?????????????????????????????????????????????????? | | ?????????????????????????????????????????????????? | | ?????????????????????????????????????????????????? | | ???????????????????????????????" ??????????????? | | ?########?????????########???? ?????????????? | | ?# #?????????# #? " ?????????????? | | ?# """ #?????????# #? " ????????????? | | ?# """ #?????????# """ ## ????????????? | | ?# """ #?????????# """ # # T???????????? | | ?? #?????????? """ # "#??????????? | | ???? #########???? ### ;#??????????? | | ######+## #######+## #??????????? | | "#??????????? | | < #??????????? | | "#??????????? | | ####+## #######+## #???????????? | | ## # "|"|" #?# # ## #########??????????? | | ## #""|"|""#?# # #??????????? | | / ########### # """ #??????????? | | ## !!!#?# # " "" @ """ #??????????? | | ## !!!#??? # "R"" " #??????????? | | ## !!!#???? # """ gY #??????????? | | ## #????? ########Y##Y########## #?????? | | + ######## ## #?????? | | ^## + tg #?????? | | ####/############ #?????? | | #?????# """"" # #######+### ###+####?????? | | ?????# """"" # #???# # #????????????? | | #?????# """"" # #???# """ # #????????????? | | #?????# + #???# """ #? #????????????? | | ###?????# ! # #???# """ #? #????????????? | | ????????# # #???# #?? #????????????? | | ????????# # #???# """ #???#????????????? | | ????????# # #???# """ # ?????????????? | | ????????########### #???# """ # #????????????? | | ??????????????????# #???# # #????????????? | | ??????????????????# #???# ^ # #????????????? | | ??????????????????# #???# ]]]# #????????????? | | ??????????????????# #???# ]]]# #????????????? | | ??????????????????# #???####### #????????????? | | ???????????#####??# #??######## +????????????? | | ???????????# ""??# #??# # #????????????? | | ???????????# "Y" # #??# # #????????????? | | ???????????# + #### # #????????????? | +----------------------------------------------------+ Best States ------------- Heat Dissipation 28 Energy Generation 10 Energy Capacity 125 Matter Stores 389 Matter Capacity 450 Sight Range 16 Terrain Scan Density 10 Evasion (%) 55 Targeting Accuracy 10 Item Schematics ----------------- None Robot Schematics ------------------ None Fabricated ------------ Nothing Alien Tech Used ----------------- None Achievements -------------- None Challenges ------------ None Game ------ Seed BattleSpliceSource Manual? 0 Play Time 00:11:18 Cumulative 13.3 hours Start 2024.04.06 @ 12:51:50 End 2024.04.06 @ 13:02:10 Sessions 1 Manual Loads 0 Difficulty Rogue Special Mode None Game No. 21 Rogue 20 Adventurer 1 Explorer 0 Win Type - Total 0 Types 0/0/0/0/0/0/0/0/0 Lore% 17 Gallery% 26 Achievement% 22 Wizard Run 0 Options --------- Layout 1 ASCII 0 Keyboard 0 Movement Mouse Keybinds 0 Fullscreen 1 Font 32/Terminus Map View 50x35 Zoom Use 0% Tactical HUD 1 Map Filters NONE Filters NONE Steam 1 RUN: d7713b64-fec0-4278-9533-1fbc82f97488